fUSD/lending_fUSD_20250823
["ID","MTS","AMOUNT","RATE_DAILY","PERIOD"]
[381053513,1755977444658,-500.0,0.00019366,2]
[381053514,1755977444668,-500.0,0.00019394,2]
[381053515,1755977444677,-500.0,0.00019442,2]
[381053516,1755977444687,-500.0,0.00019491,2]
[381053517,1755977444696,-500.0,0.00019539,2]
[381053518,1755977444706,-500.0,0.00019587,2]
[381053519,1755977444717,-500.0,0.00019635,2]
[381053520,1755977444726,-200.0,0.0001964,2]
[381053521,1755977444735,-300.0,0.0001964,2]
[381053522,1755977444744,-150.0,0.0001964,2]
[381053523,1755977444754,-500.0,0.0001964,2]
[381053524,1755977444763,-500.0,0.00019683,2]
[381053525,1755977444772,-500.0,0.00019731,2]
[381053526,1755977444782,-500.0,0.00019779,2]
[381053527,1755977444792,-500.0,0.00019827,2]
[381053528,1755977444802,-193.81,0.00019863,2]
[381053529,1755977444816,-500.0,0.00019875,2]
[381053530,1755977444825,-932.32,0.000199,2]
[381053531,1755977444834,-250.0,0.00019914,2]
[381053532,1755977444844,-500.0,0.00019914,2]
[381053533,1755977444853,-500.0,0.00019923,2]
[381053534,1755977444864,-514.0,0.0001997,2]
[381053535,1755977444876,-500.0,0.00019971,2]
[381053536,1755977444886,-1503.28536837,0.0002,2]
[381053537,1755977444895,-200.0,0.0002,2]
[381053538,1755977444905,-8118.30409329,0.0002,14]
[381053539,1755977444915,-1269.49427322,0.0002,2]
[381053540,1755977444924,-303.02749745,0.0002,2]
[381053541,1755977444933,-1139.00539241,0.0002,2]
[381053542,1755977444943,-4000.0,0.0002,4]
[381053543,1755977444953,-500.0,0.00020019,2]
[381053544,1755977444963,-500.0,0.00020067,2]
[381053545,1755977444972,-500.0,0.00020115,2]
[381053546,1755977444982,-9999.99,0.00020145,2]
[381053547,1755977444992,-500.0,0.00020163,2]
[381053548,1755977445001,-1000.0,0.00020187,2]
[381053549,1755977445011,-500.0,0.00020188,2]
[381053550,1755977445021,-500.0,0.00020211,2]
[381053551,1755977445030,-500.0,0.0002026,2]
[381053552,1755977445040,-500.0,0.00020308,2]
[381053553,1755977445049,-500.0,0.00020356,2]
[381053554,1755977445059,-500.0,0.00020404,2]
[381053555,1755977445068,-384.50534408,0.0002045,2]
[381053556,1755977445078,-500.0,0.00020452,2]
[381053557,1755977445087,-500.0,0.00020462,2]
[381053558,1755977445098,-150.0,0.00020466,2]
[381053559,1755977445107,-500.0,0.000205,2]
[381053560,1755977445116,-500.0,0.00020548,2]
[381053561,1755977445126,-500.0,0.00020736,2]
[381053562,1755977445135,-400.0,0.0002097,2]
[381053563,1755977445145,-664.02,0.0002099,2]
[381053564,1755977445156,-1168.95276544,0.00021,2]
[381053565,1755977445168,-192.94686565,0.00021,2]
[381053566,1755977445181,-500.0,0.0002101,2]
[381053567,1755977445191,-417.0,0.000211,2]
[381053568,1755977445201,-151.24,0.00021108,2]
[381053569,1755977445213,-6093.0,0.00021137,2]
[381053570,1755977445224,-2066.53,0.00021137,2]
[381053571,1755977445235,-1255.0,0.00021137,2]
[381053572,1755977445247,-925.0,0.00021137,2]
[381053573,1755977445258,-718.0,0.00021137,2]
[381053574,1755977445270,-1657.0,0.00021137,2]
[381053575,1755977445280,-566.0,0.00021137,2]
[381053576,1755977445292,-4153.0,0.00021137,2]
[381053577,1755977445302,-353.661,0.00021137,2]
[381053578,1755977445313,-207.4,0.00021228,2]
[381053579,1755977445325,-177.51091314,0.00021284,2]
[381053580,1755977445336,-19050.27,0.000214,2]
[381053581,1755977445348,-260.83,0.00021488,2]
[381053582,1755977445359,-8343.13,0.000215,2]
[381053583,1755977445370,-217.50642705,0.000215,2]
[381053584,1755977445380,-1449.08,0.000215,2]
[381053585,1755977445389,-200.0,0.00021513,2]
[381053586,1755977445399,-600.0,0.00021616,2]
[381053587,1755977445411,-300.0,0.00021699,2]
[381053588,1755977445421,-300.0,0.00021699,2]
[381053589,1755977445430,-4111.01,0.000217,2]
[381053590,1755977445441,-110815.0,0.000217,2]
[381053591,1755977445451,-1000.0,0.00021806,2]
[381053592,1755977445462,-250.0,0.00021806,2]
[381053593,1755977445472,-2000.0,0.000219,2]
[381053594,1755977445482,-5000.0,0.00021918,2]
[381053595,1755977445491,-1031.430451,0.00021918,2]
[381053596,1755977445501,-1031.430451,0.00021918,2]
[381053597,1755977445511,-1031.430451,0.00021918,2]
[381053598,1755977445521,-1031.430451,0.00021918,2]
[381053599,1755977445530,-1031.430451,0.00021918,2]
[381053600,1755977445540,-1031.430451,0.00021918,2]
[381053601,1755977445549,-1031.430451,0.00021918,2]
[381053602,1755977445559,-1031.430451,0.00021918,2]
[381053603,1755977445568,-173.992373,0.00021918,2]
[381053604,1755977445577,-173.992373,0.00021918,2]
[381053606,1755977445587,-173.992373,0.00021918,2]
[381053607,1755977445596,-173.992373,0.00021918,2]
[381053608,1755977445605,-520.3510504,0.00021918,2]
[381053609,1755977445615,-500.0,0.00021918,2]
[381053610,1755977445625,-150.0,0.00021918,2]
[381053611,1755977445634,-405.78508626,0.0002192,4]
[381053612,1755977445644,-405.78508626,0.0002192,4]
[381053613,1755977445654,-405.78508626,0.0002192,4]
[381053614,1755977445663,-405.78508626,0.0002192,4]
[381053615,1755977445673,-405.78508626,0.0002192,4]
[381053616,1755977445682,-405.78508626,0.0002192,4]
[381053617,1755977445691,-405.78508626,0.0002192,4]
[381053618,1755977445700,-405.78508626,0.0002192,4]
[381053619,1755977445710,-405.78508626,0.0002192,4]
[381053620,1755977445719,-405.78508626,0.0002192,4]
[381053621,1755977445729,-405.78508626,0.0002192,4]
[381053622,1755977445738,-405.78508626,0.0002192,4]
[381053623,1755977445748,-405.78508626,0.0002192,4]
[381053624,1755977445757,-405.78508626,0.0002192,4]
[381053625,1755977445766,-405.78508626,0.0002192,4]
[381053626,1755977445776,-405.78508626,0.0002192,4]
[381053627,1755977445785,-405.78508626,0.0002192,4]
[381053628,1755977445795,-405.78508626,0.0002192,4]
[381053629,1755977445804,-405.78508626,0.0002192,4]
[381053630,1755977445813,-405.78,0.0002192,4]
[381053631,1755977445822,-946.83186794,0.0002192,4]
[381053632,1755977445832,-946.83186794,0.0002192,4]
[381053633,1755977445842,-946.83186794,0.0002192,4]
[381053634,1755977445852,-946.83186794,0.0002192,4]
[381053635,1755977445861,-409.79503205,0.0002192,4]
[381053636,1755977445871,-409.79503205,0.0002192,4]
[381053637,1755977445881,-409.79503205,0.0002192,4]
[381053638,1755977445891,-409.79503205,0.0002192,4]
[381053639,1755977445901,-409.79503205,0.0002192,4]
[381053640,1755977445910,-409.79503205,0.0002192,4]
[381053641,1755977445920,-409.79503205,0.0002192,4]
[381053642,1755977445929,-409.79503205,0.0002192,4]
[381053643,1755977445940,-409.79503205,0.0002192,4]
[381053644,1755977445951,-409.79503205,0.0002192,4]
[381053645,1755977445960,-409.79503205,0.0002192,4]
[381053646,1755977445970,-409.79503205,0.0002192,4]
[381053647,1755977445979,-409.79503205,0.0002192,4]
[381053648,1755977445988,-409.79503205,0.0002192,4]
[381053649,1755977445998,-409.79503205,0.0002192,4]
[381053650,1755977446098,-409.79503205,0.0002192,4]
[381053651,1755977446109,-409.79503205,0.0002192,4]
[381053652,1755977446119,-409.79503205,0.0002192,4]
[381053653,1755977446129,-409.79503205,0.0002192,4]
[381053654,1755977446138,-409.79,0.0002192,4]
[381053655,1755977446147,-956.18840812,0.0002192,4]
[381053656,1755977446156,-956.18840812,0.0002192,4]
[381053657,1755977446165,-956.18840812,0.0002192,4]
[381053658,1755977446174,-956.18840812,0.0002192,4]
[381053659,1755977446183,-330.79904688,0.0002192,4]
[381053660,1755977446193,-330.79904688,0.0002192,4]
[381053661,1755977446202,-330.79904688,0.0002192,4]
[381053662,1755977446211,-330.79904688,0.0002192,4]
[381053663,1755977446223,-330.79904688,0.0002192,4]
[381053664,1755977446233,-330.79904688,0.0002192,4]
[381053666,1755977446243,-330.79904688,0.0002192,4]
[381053668,1755977446252,-330.79904688,0.0002192,4]
[381053669,1755977446261,-330.79904688,0.0002192,4]
[381053670,1755977446271,-330.79904688,0.0002192,4]
[381053671,1755977446279,-330.79904688,0.0002192,4]
[381053672,1755977446289,-330.79904688,0.0002192,4]
[381053674,1755977446298,-330.79904688,0.0002192,4]
[381053676,1755977446307,-330.79904688,0.0002192,4]
[381053678,1755977446317,-330.79904688,0.0002192,4]
[381053680,1755977446326,-330.79904688,0.0002192,4]
[381053682,1755977446336,-330.79904688,0.0002192,4]
[381053684,1755977446345,-330.79904688,0.0002192,4]
[381053685,1755977446355,-330.79904688,0.0002192,4]
[381053686,1755977446363,-330.79,0.0002192,4]
[381053687,1755977446372,-771.86444271,0.0002192,4]
[381053688,1755977446381,-771.86444271,0.0002192,4]
[381053689,1755977446390,-771.86444271,0.0002192,4]
[381053690,1755977446399,-771.86444271,0.0002192,4]
[381053691,1755977446408,-946.83186794,0.00021923,4]
[381053692,1755977446418,-956.18840812,0.00021923,4]
[381053693,1755977446429,-771.86444271,0.00021923,4]
[381053694,1755977446438,-2607.78,0.00021945,30]
[381053695,1755977446448,-2000.0,0.00021999,2]
[381053696,1755977446457,-160.97,0.00022,2]
[381053697,1755977446466,-4000.0,0.00022,4]
[381053698,1755977446476,-1000.0,0.0002201,2]
[381053699,1755977446485,-946.83186794,0.00022041,4]
[381053700,1755977446495,-956.18840812,0.00022041,4]
[381053701,1755977446504,-771.86444271,0.00022041,4]
[381053702,1755977446514,-666.0,0.00022086,3]
[381053703,1755977446523,-484.24601667,0.000221,2]
[381053704,1755977446532,-1151.44,0.000221,2]
[381053705,1755977446542,-235.3234876,0.0002211,2]
[381053706,1755977446551,-946.83186794,0.0002216,4]
[381053707,1755977446561,-956.18840812,0.0002216,4]
[381053708,1755977446570,-771.86444271,0.0002216,4]
[381053709,1755977446579,-384.50534408,0.0002216,2]
[381053710,1755977446590,-600.0,0.00022164,2]
[381053711,1755977446599,-500.0,0.00022192,2]
[381053712,1755977446609,-946.83186794,0.00022278,4]
[381053713,1755977446618,-956.18840812,0.00022278,4]
[381053714,1755977446627,-771.86444271,0.00022278,4]
[381053715,1755977446636,-322.6107,0.00022396,2]
[381053716,1755977446646,-170.63411567,0.00022396,2]
[381053717,1755977446655,-695.39793187,0.00022396,2]
[381053718,1755977446664,-160.0,0.00022396,2]
[381053719,1755977446674,-1000.0,0.00022396,2]
[381053720,1755977446684,-1000.0,0.00022396,2]
[381053721,1755977446693,-1000.0,0.00022396,2]
[381053722,1755977446702,-1000.0,0.00022396,2]
[381053723,1755977446711,-1000.0,0.00022396,2]
[381053724,1755977446720,-764.38288249,0.00022396,2]
[381053725,1755977446730,-946.83186794,0.00022397,4]
[381053726,1755977446739,-956.18840812,0.00022397,4]
[381053727,1755977446749,-771.86444271,0.00022397,4]
[381053728,1755977446758,-683.31,0.00022462,2]
[381053729,1755977446767,-404.65787595,0.00022466,2]
[381053730,1755977446776,-946.83186794,0.00022515,4]
[381053731,1755977446785,-956.18840812,0.00022515,4]
[381053732,1755977446794,-771.86444271,0.00022515,4]
[381053733,1755977446803,-193.81,0.00022603,2]
[381053734,1755977446812,-900.0,0.00022626,8]
[381053735,1755977446822,-900.0,0.00022626,8]
[381053736,1755977446831,-900.0,0.00022626,8]
[381053737,1755977446840,-900.0,0.00022626,8]
[381053738,1755977446849,-900.0,0.00022626,8]
[381053739,1755977446860,-900.0,0.00022626,8]
[381053740,1755977446869,-900.0,0.00022626,8]
[381053741,1755977446878,-900.0,0.00022626,8]
[381053742,1755977446887,-946.83186794,0.00022634,4]
[381053743,1755977446896,-956.18840812,0.00022634,4]
[381053744,1755977446905,-771.86444271,0.00022634,4]
[381053745,1755977446914,-600.0,0.00022712,2]
[381053746,1755977446924,-946.83186794,0.00022752,4]
[381053747,1755977446934,-956.18840812,0.00022752,4]
[381053748,1755977446944,-771.86444271,0.00022752,4]
[381053749,1755977446955,-946.83186794,0.00022871,4]
[381053750,1755977446965,-956.18840812,0.00022871,4]
[381053751,1755977446975,-771.86444271,0.00022871,4]
[381053752,1755977446986,-946.83186794,0.00022989,4]
[381053753,1755977446995,-956.18840812,0.00022989,4]
[381053754,1755977447005,-771.86444271,0.00022989,4]
[381053755,1755977447014,-844.27675029,0.00023,3]
[381053756,1755977447024,-946.83186794,0.00023108,4]
[381053757,1755977447033,-956.18840812,0.00023108,4]
[381053758,1755977447043,-771.86444271,0.00023108,4]
[381053759,1755977447052,-946.83186794,0.00023226,4]
[381053760,1755977447061,-956.18840812,0.00023226,4]
[381053761,1755977447070,-771.86444271,0.00023226,4]
[381053762,1755977447081,-600.0,0.0002326,2]
[381053763,1755977447091,-1151.44,0.00023295,2]
[381053764,1755977447101,-946.83186794,0.00023345,4]
[381053765,1755977447110,-956.18840812,0.00023345,4]
[381053766,1755977447120,-771.86444271,0.00023345,4]
[381053767,1755977447130,-300.0,0.00023359,2]
[381053768,1755977447139,-946.83186794,0.00023463,4]
[381053769,1755977447148,-956.18840812,0.00023463,4]
[381053770,1755977447159,-771.86444271,0.00023463,4]
[381053771,1755977447170,-946.83186794,0.00023582,4]
[381053772,1755977447183,-956.18840812,0.00023582,4]
[381053773,1755977447192,-771.86444271,0.00023582,4]
[381053774,1755977447201,-500.0,0.00023596,2]
[381053775,1755977447210,-168.0,0.00023626,2]
[381053776,1755977447220,-300.0,0.00023699,2]
[381053777,1755977447230,-300.0,0.00023699,2]
[381053778,1755977447238,-110815.0,0.000237,7]
[381053779,1755977447248,-212.10093811,0.000237,7]
[381053780,1755977447258,-458.60200496,0.000237,7]
[381053781,1755977447268,-946.83,0.000237,4]
[381053782,1755977447277,-956.18,0.000237,4]
[381053783,1755977447286,-771.86,0.000237,4]
[381053784,1755977447295,-151.0,0.000237,7]
[381053785,1755977447304,-151.0,0.000237,7]
[381053786,1755977447313,-151.0,0.000237,7]
[381053787,1755977447323,-151.0,0.000237,7]
[381053788,1755977447332,-151.0,0.000237,7]
[381053789,1755977447341,-151.0,0.000237,7]
[381053790,1755977447350,-7723.87228,0.000237,7]
[381053791,1755977447360,-160.655652,0.000237,7]
[381053792,1755977447370,-151.0,0.000237,7]
[381053793,1755977447379,-7723.87228,0.000237,7]
[381053794,1755977447388,-160.655652,0.000237,7]
[381053795,1755977447397,-160.655652,0.000237,7]
[381053796,1755977447407,-7723.87228,0.000237,7]
[381053797,1755977447416,-160.655652,0.000237,7]
[381053798,1755977447426,-7723.87228,0.000237,7]
[381053799,1755977447435,-151.0,0.000237,7]
[381053800,1755977447445,-272.360657,0.000237,7]
[381053801,1755977447454,-160.05,0.00023726,2]
[381053802,1755977447463,-1000.0,0.00023735,2]
[381053803,1755977447472,-334.5472959,0.00023765,2]
[381053804,1755977447482,-160.0,0.00023765,2]
[381053805,1755977447491,-4111.01,0.000238,7]
[381053806,1755977447501,-2796.97,0.000238,7]
[381053807,1755977447510,-500.0,0.00023801,2]
[381053808,1755977447519,-600.0,0.00023808,2]
[381053809,1755977447530,-384.50534408,0.0002387,2]
[381053810,1755977447539,-8343.13,0.000239,2]
[381053811,1755977447550,-1449.08,0.000239,2]
[381053812,1755977447560,-500.0,0.00023925,2]
[381053813,1755977447569,-500.0,0.00023925,2]
[381053814,1755977447579,-150.0,0.0002394,2]
[381053815,1755977447588,-200.0,0.0002394,2]
[381053816,1755977447598,-150.0,0.0002394,2]
[381053817,1755977447608,-150.0,0.0002394,2]
[381053818,1755977447617,-675.0,0.0002394,2]
[381053819,1755977447628,-500.0,0.0002394,2]
[381053820,1755977447637,-500.0,0.0002394,2]
[381053821,1755977447647,-216.77420714,0.0002394,2]
[381053822,1755977447658,-500.0,0.0002394,2]
[381053823,1755977447668,-150.0,0.0002394,2]
[381053824,1755977447678,-500.0,0.0002394,2]
[381053825,1755977447687,-500.0,0.0002394,2]
[381053826,1755977447697,-478.0,0.0002394,2]
[381053827,1755977447707,-200.0,0.0002394,2]
[381053828,1755977447716,-150.0,0.0002394,2]
[381053829,1755977447726,-150.0,0.0002394,2]
[381053830,1755977447736,-150.0,0.0002394,2]
[381053831,1755977447745,-150.0,0.0002394,2]
[381053832,1755977447755,-150.0,0.0002394,2]
[381053833,1755977447765,-150.0,0.0002394,2]
[381053834,1755977447774,-168.0,0.0002394,2]
[381053835,1755977447784,-200.0,0.00023967,2]
[381053836,1755977447793,-844.27675029,0.00024,7]
[381053837,1755977447803,-5000.00912145,0.00024,5]
[381053838,1755977447813,-1500.0,0.00024,2]
[381053839,1755977447822,-250.07056841,0.00024,2]
[381053840,1755977447832,-4000.0,0.00024,4]
[381053841,1755977447842,-500.0,0.00024097,2]
[381053842,1755977447851,-4153.0,0.00024137,2]
[381053843,1755977447861,-500.0,0.00024164,2]
[381053844,1755977447870,-8343.13,0.000242,2]
[381053845,1755977447881,-1449.08,0.000242,2]
[381053846,1755977447890,-412.76820325,0.0002421,2]
[381053847,1755977447900,-150.0,0.00024214,2]
[381053848,1755977447910,-675.0,0.00024214,2]
[381053849,1755977447919,-500.0,0.00024214,2]
[381053850,1755977447930,-600.0,0.00024214,2]
[381053851,1755977447939,-500.0,0.00024214,2]
[381053852,1755977447949,-150.0,0.00024214,2]
[381053853,1755977447958,-500.0,0.00024214,2]
[381053854,1755977447967,-500.0,0.00024214,2]
[381053855,1755977447977,-478.0,0.00024214,2]
[381053856,1755977447986,-150.0,0.00024214,2]
[381053857,1755977447995,-150.0,0.00024214,2]
[381053858,1755977448005,-500.0,0.00024251,2]
[381053859,1755977448014,-168.0,0.00024322,2]
[381053860,1755977448024,-600.0,0.00024356,2]
[381053861,1755977448034,-787.0,0.000244,2]
[381053862,1755977448044,-380.0,0.000244,2]
[381053863,1755977448054,-778.0,0.000244,2]
[381053864,1755977448064,-500.0,0.00024408,2]
[381053865,1755977448074,-500.0,0.00024411,2]
[381053866,1755977448084,-400.0,0.0002447,2]
[381053867,1755977448094,-282.02157286,0.00024488,2]
[381053868,1755977448105,-675.0,0.00024488,2]
[381053869,1755977448115,-500.0,0.00024488,2]
[381053870,1755977448125,-350.0,0.00024488,2]
[381053871,1755977448135,-150.0,0.00024488,2]
[381053872,1755977448144,-500.0,0.00024488,2]
[381053873,1755977448154,-500.0,0.00024488,2]
[381053874,1755977448164,-478.0,0.00024488,2]
[381053875,1755977448174,-150.0,0.00024488,2]
[381053876,1755977448184,-200.0,0.00024488,2]
[381053877,1755977448194,-947.64527311,0.00024548,2]
[381053878,1755977448203,-1151.44,0.0002455,2]
[381053879,1755977448213,-584.38584296,0.0002465,2]
[381053880,1755977448222,-163.55036807,0.0002465,2]
[381053881,1755977448232,-1000.0,0.00024658,2]
[381053882,1755977448241,-300.0,0.00024729,2]
[381053883,1755977448251,-1000.0,0.00024761,2]
[381053884,1755977448260,-675.0,0.00024762,2]
[381053885,1755977448270,-250.0,0.00024762,2]
[381053886,1755977448280,-500.0,0.00024762,2]
[381053887,1755977448289,-500.0,0.00024762,2]
[381053888,1755977448298,-478.0,0.00024762,2]
[381053889,1755977448308,-200.0,0.00024762,2]
[381053890,1755977448318,-500.0,0.00024798,2]
[381053891,1755977448328,-300.0,0.00024799,10]
[381053892,1755977448338,-300.0,0.00024799,10]
[381053893,1755977448351,-21715.05366347,0.000248,2]
[381053894,1755977448360,-205383.76587955,0.000248,3]
[381053895,1755977449128,-651.96089616,0.000248,3]
[381053896,1755977449139,-1230.49886986,0.000248,3]
[381053897,1755977449151,-303.5825389,0.000248,3]
[381053898,1755977449376,-151.0,0.00017,2]
[381053899,1755977449385,-206.33436944,0.000248,3]
[381053900,1755977449450,-19145.72227245,0.000248,3]
[381053901,1755977449462,-3911.24189671,0.000248,3]
[381053903,1755977451063,-598.39758557,0.00011898,2]
[381053904,1755977451073,-9.62441443,0.000119,2]
[381053905,1755977451102,-1005.41112823,0.000119,2]
[381053906,1755977451113,-151.0,0.00017,2]
[381053907,1755977451123,-151.0,0.00017,2]
[381053908,1755977451132,-151.0,0.00017,2]
[381053909,1755977451142,-151.0,0.00017,2]
[381053910,1755977451151,-151.0,0.00017,2]
[381053911,1755977451161,-151.0,0.00018,2]
[381053912,1755977451174,-151.0,0.00018,2]
[381053913,1755977451186,-151.0,0.00018,2]
[381053914,1755977451196,-214.685282,0.00018,2]
[381053915,1755977451205,-151.0,0.000237,7]
[381053916,1755977451216,-151.0,0.000237,7]
[381053917,1755977451226,-151.0,0.000237,7]
[381053918,1755977451236,-390149.16235393,0.000248,3]
[381053919,1755977451246,-529.189078,0.000248,7]
[381053920,1755977451257,-302.919084,0.000248,7]
[381053921,1755977451267,-529.189078,0.000248,7]
[381053922,1755977451277,-151.0,0.000248,7]
[381053923,1755977451287,-302.919084,0.000248,7]
[381053924,1755977451297,-529.189078,0.000248,7]
[381053925,1755977451307,-302.919084,0.000248,7]
[381053926,1755977451318,-529.189078,0.000248,7]
[381053927,1755977451328,-562.846689,0.000248,7]
[381053928,1755977451338,-195.54452,0.000248,7]
[381053929,1755977451347,-302.919084,0.000248,7]
[381053930,1755977451357,-562.846689,0.000248,7]
[381053931,1755977451367,-1031.430451,0.000248,7]
[381053932,1755977451377,-195.54452,0.000248,7]
[381053933,1755977451387,-562.846689,0.000248,7]
[381053934,1755977451396,-1031.430451,0.000248,7]
[381053935,1755977451407,-195.54452,0.000248,7]
[381053936,1755977451416,-562.846689,0.000248,7]
[381053937,1755977451426,-2386.158892,0.000248,7]
[381053938,1755977451435,-195.54452,0.000248,7]
[381053939,1755977451445,-1031.430451,0.000248,7]
[381053940,1755977451455,-2386.158892,0.000248,7]
[381053941,1755977451465,-1031.430451,0.000248,7]
[381053942,1755977451475,-192.726673,0.000248,7]
[381053943,1755977451484,-2386.158892,0.000248,7]
[381053944,1755977451494,-2386.158892,0.000248,7]
[381053945,1755977451503,-192.726673,0.000248,7]
[381053946,1755977451512,-350.510081,0.000248,7]
[381053947,1755977451522,-1243.236422,0.000248,7]
[381053948,1755977451532,-192.726673,0.000248,7]
[381053949,1755977451542,-350.510081,0.000248,7]
[381053950,1755977451551,-1243.236422,0.000248,7]
[381053951,1755977451563,-192.726673,0.000248,7]
[381053952,1755977451573,-350.510081,0.000248,7]
[381053953,1755977451584,-1243.236422,0.000248,7]
[381053954,1755977451595,-1243.236422,0.000248,7]
[381053955,1755977451605,-350.510081,0.000248,7]
[381053956,1755977451615,-151.0,0.000248,7]
[381053957,1755977451626,-151.0,0.000248,7]
[381053958,1755977451635,-151.0,0.000248,7]
[381053959,1755977451644,-151.0,0.000248,7]
[381053960,1755977451654,-231.937051,0.000248,7]
[381053961,1755977451664,-151.0,0.000248,7]
[381053962,1755977451673,-231.937051,0.000248,7]
[381053963,1755977451683,-151.0,0.000248,7]
[381053964,1755977451694,-151.0,0.000248,7]
[381053965,1755977451704,-231.937051,0.000248,7]
[381053966,1755977451716,-231.937051,0.000248,7]
[381053967,1755977451728,-151.0,0.000248,7]
[381053968,1755977451740,-151.0,0.000248,7]
[381053969,1755977451750,-151.0,0.000248,7]
[381053970,1755977451760,-151.0,0.000248,7]
[381053971,1755977451770,-151.0,0.000248,7]
[381053972,1755977451780,-151.062649,0.000248,7]
[381053973,1755977451790,-7723.87228,0.000248,7]
[381053974,1755977451800,-160.655652,0.000248,7]
[381053975,1755977451810,-160.655652,0.000248,7]
[381053976,1755977451820,-7723.87228,0.000248,7]
[381053977,1755977451831,-160.655652,0.000248,7]
[381053978,1755977451841,-7723.87228,0.000248,7]
[381053979,1755977451852,-160.655652,0.000248,7]
[381053980,1755977451862,-7723.87228,0.000248,7]
[381053981,1755977451872,-151.0,0.000248,7]
[381053982,1755977451883,-151.378738,0.000248,7]
[381053983,1755977451895,-151.0,0.000248,7]
[381053984,1755977451906,-151.0,0.000248,7]
[381053985,1755977451917,-1936.54356409,0.00024804,2]
[381053986,1755977451929,-500.0,0.00024805,2]
[381053987,1755977451940,-1862.45297273,0.0002488,7]
[381053988,1755977452361,-5472.48173453,0.00024884,2]
[381053989,1755977452374,-301.74,0.000249,2]
[381053990,1755977452385,-32014.49541772,0.000249,2]
[381053991,1755977452395,-600.0,0.00024904,2]
[381053992,1755977452404,-1000.0,0.00024912,2]
[381053993,1755977452415,-1000.0,0.00024915,2]
[381053994,1755977452424,-500.0,0.00024932,2]
[381053995,1755977452434,-294.3175,0.00024936,2]
[381053996,1755977452444,-1000.0,0.00024936,2]
[381053997,1755977452455,-150.0,0.0002496,2]
[381053998,1755977452465,-300.0,0.0002496,2]
[381053999,1755977452474,-1000.0,0.00024982,2]
[381054000,1755977452485,-300.0,0.00024999,10]
[381054001,1755977452494,-300.0,0.00025,2]
[381054002,1755977452504,-300.0,0.00025,2]
[381054003,1755977452514,-300.0,0.00025,2]
[381054004,1755977452525,-110815.0,0.00025,7]
[381054005,1755977452535,-151.0,0.00025,7]
[381054006,1755977452544,-151.0,0.00025,7]
[381054007,1755977452554,-256.579695,0.00025,7]
[381054008,1755977452564,-151.0,0.00025,7]
[381054009,1755977452574,-151.0,0.00025,7]
[381054010,1755977452585,-256.579695,0.00025,7]
[381054011,1755977452595,-151.0,0.00025,7]
[381054012,1755977452606,-256.579695,0.00025,7]
[381054013,1755977452617,-151.0,0.00025,7]
[381054014,1755977452628,-256.579695,0.00025,7]
[381054015,1755977452638,-151.0,0.00025,7]
[381054016,1755977452647,-151.0,0.00025,7]
[381054017,1755977452657,-229.717209,0.00025,7]
[381054018,1755977452667,-837.929175,0.00025,7]
[381054019,1755977452676,-216.739474,0.00025,7]
[381054020,1755977452687,-837.929175,0.00025,7]
[381054021,1755977452696,-216.739474,0.00025,7]
[381054022,1755977452706,-151.0,0.00025,7]